fUST/lending_fUST_20251219
["ID","MTS","AMOUNT","RATE_DAILY","PERIOD"]
[399069170,1766099433000,-1000.0,0.00033562,30]
[399069171,1766099433010,-166.53,0.00035122,7]
[399069172,1766099433019,-171.967319,0.00036849,2]
[399069173,1766099433028,-1000.0,0.00036918,30]
[399069174,1766099433038,-244.0,0.00036918,30]
[399069175,1766099433047,-3000.0,0.000379,120]
[399069176,1766099433057,-247.07656996,0.00038158,2]
[399069177,1766099433066,-500.0,0.00039102,120]
[399069178,1766099433075,-556.77179491,0.00039162,2]
[399069188,1766099438561,-4443.22820509,0.00039162,2]
[399069189,1766099438572,-1251.31721382,0.00039557,2]
[399069190,1766099438581,-3589.68438047,0.00039715,2]
[399069191,1766099438591,-204.82029086,0.00039738,2]
[399069192,1766099438601,-1000.0,0.000399,33]
[399069193,1766099438611,-300.0,0.0004,5]
[399069194,1766099438620,-475.20905726,0.00040167,2]
[399069195,1766099438630,-2158.0,0.00040169,2]
[399069196,1766099438640,-632.0,0.00040169,2]
[399069197,1766099438652,-600.0,0.00040274,5]
[399069198,1766099438661,-1000.0,0.000404,33]
[399069199,1766099438672,-821.41,0.00040456,2]
[399069200,1766099438682,-500.0,0.00040456,120]
[399069201,1766099438693,-500.0,0.00040457,120]
[399069202,1766099438703,-619.57,0.00040457,14]
[399069203,1766099438712,-1200.00003257,0.00040457,120]
[399069204,1766099438722,-500.0,0.00040483,120]
[399069205,1766099438738,-500.0,0.00040484,2]
[399069206,1766099438748,-619.57,0.00040484,14]
[399069207,1766099438758,-900.0,0.00040548,5]
[399069208,1766099438768,-293.94308259,0.00040592,120]
[399069209,1766099438778,-161.26849889,0.00040592,120]
[399069210,1766099438787,-173.45893111,0.00040592,120]
[399069211,1766099438797,-188.00213512,0.00040592,120]
[399069212,1766099438806,-173.45893111,0.00040592,120]
[399069213,1766099438816,-161.26849889,0.00040592,120]
[399069214,1766099438826,-188.00213512,0.00040592,120]
[399069215,1766099438837,-173.45893111,0.00040592,120]
[399069216,1766099438848,-188.00213512,0.00040592,120]
[399069217,1766099438858,-188.00213512,0.00040592,120]
[399069218,1766099438868,-173.45893111,0.00040592,120]
[399069219,1766099438878,-173.45893111,0.00040592,120]
[399069220,1766099438889,-188.00213512,0.00040592,120]
[399069221,1766099438899,-173.45893111,0.00040592,120]
[399069222,1766099438909,-188.00213512,0.00040592,120]
[399069223,1766099438921,-188.00213512,0.00040592,120]
[399069224,1766099438931,-188.00213508,0.00040592,120]
[399069225,1766099438940,-157.18306885,0.00040592,120]
[399069226,1766099438949,-211.37346446,0.00040592,120]
[399069227,1766099438959,-211.37346446,0.00040592,120]
[399069228,1766099438969,-211.37346446,0.00040592,120]
[399069229,1766099438978,-220.53489268,0.00040592,120]
[399069230,1766099438987,-220.53489268,0.00040592,120]
[399069231,1766099438997,-220.53489268,0.00040592,120]
[399069232,1766099439006,-152.27000001,0.00040592,120]
[399069233,1766099439016,-290.23506287,0.00040592,120]
[399069234,1766099439026,-290.23506287,0.00040592,120]
[399069235,1766099439035,-290.23506287,0.00040592,120]
[399069236,1766099439044,-1000.0,0.0004061,60]
[399069237,1766099439054,-492.0,0.0004061,60]
[399069238,1766099439063,-1200.0,0.00040822,5]
[399069239,1766099439073,-574.12855637,0.00040963,2]
[399069240,1766099439083,-310.31674862,0.00040963,2]
[399069241,1766099439092,-1077.04274398,0.00041056,6]
[399069242,1766099439101,-274.94456431,0.00041091,5]
[399069243,1766099439111,-414.41131011,0.00041091,5]
[399069244,1766099439120,-231.99712027,0.00041091,5]
[399069245,1766099439131,-1500.0,0.00041096,10]
[399069246,1766099439142,-208.63375504,0.0004137,10]
[399069247,1766099439151,-3589.68438047,0.00041488,2]
[399069248,1766099439160,-595.37131296,0.00041511,2]
[399069249,1766099439170,-204.61661712,0.00041713,2]
[399069250,1766099439179,-204.61588034,0.00041713,2]
[399069251,1766099439189,-204.6158796,0.00041713,2]
[399069252,1766099439199,-617.40005154,0.00042059,2]
[399069253,1766099439209,-5000.0,0.00042487,4]
[399069254,1766099439218,-179.17,0.000425,14]
[399069255,1766099439228,-640.24385345,0.00042607,2]
[399069256,1766099439242,-821.41,0.00042695,2]
[399069257,1766099439251,-500.0,0.00042695,120]
[399069258,1766099439261,-484.84882083,0.00042696,2]
[399069259,1766099439270,-302.5250498,0.00042942,2]
[399069260,1766099439279,-410.82823381,0.0004311,2]
[399069261,1766099439289,-663.93287602,0.00043155,2]
[399069262,1766099439298,-2158.0,0.00043169,2]
[399069263,1766099439308,-632.0,0.00043169,2]
[399069264,1766099439317,-3589.68438047,0.00043262,2]
[399069265,1766099439326,-1993.16868944,0.000434,15]
[399069266,1766099439335,-688.49839244,0.00043703,2]
[399069267,1766099439344,-500.0,0.00043724,120]
[399069268,1766099439353,-619.57,0.00043725,14]
[399069269,1766099439362,-500.233,0.00043732,30]
[399069270,1766099439371,-195.10156188,0.00043904,7]
[399069271,1766099439380,-1005.5959615,0.0004399,2]
[399069272,1766099439393,-677.40310307,0.0004399,2]
[399069273,1766099439402,-1219.32558553,0.0004399,2]
[399069274,1766099439411,-408.51578103,0.0004399,2]
[399069275,1766099439420,-172.12,0.00044,14]
[399069276,1766099439429,-872.7278775,0.00044118,2]
[399069277,1766099439438,-486.88099929,0.00044203,2]
[399069278,1766099439447,-713.97283296,0.00044251,2]
[399069279,1766099439456,-1914.0906004,0.00044268,2]
[399069280,1766099439465,-14653.3337219,0.00044268,2]
[399069281,1766099439474,-3771.41021961,0.00044442,2]
[399069282,1766099439484,-500.0,0.00044601,120]
[399069283,1766099439493,-1890.77995008,0.00044651,2]
[399069284,1766099439502,-1000.0,0.00044671,60]
[399069285,1766099439511,-791.0,0.00044671,60]
[399069286,1766099439521,-500.0,0.00044685,10]
[399069287,1766099439530,-500.0,0.00044685,120]
[399069288,1766099439539,-720.06,0.00044685,120]
[399069289,1766099439549,-531.78,0.00044685,120]
[399069290,1766099439558,-500.0,0.00044685,120]
[399069291,1766099439568,-500.0,0.00044685,120]
[399069292,1766099439577,-740.38982778,0.00044799,2]
[399069293,1766099439586,-800.0,0.00044852,14]
[399069294,1766099439595,-821.41,0.00044854,2]
[399069295,1766099439605,-500.0,0.00044854,120]
[399069296,1766099439614,-800.0,0.00044864,14]
[399069297,1766099439623,-165.32681229,0.00044879,14]
[399069298,1766099439633,-1890.77995009,0.00044881,2]
[399069299,1766099439643,-179.17,0.000449,14]
[399069300,1766099439652,-800.0,0.00044908,14]
[399069301,1766099439661,-800.0,0.00044914,14]
[399069302,1766099439671,-3771.41021961,0.00044926,2]
[399069303,1766099439680,-800.0,0.00044955,14]
[399069304,1766099439689,-500.0,0.00044979,120]
[399069305,1766099439699,-527.98,0.0004498,30]
[399069306,1766099439708,-500.0,0.00044989,10]
[399069307,1766099439717,-500.0,0.00044989,10]
[399069308,1766099439726,-500.0,0.00044989,10]
[399069309,1766099439735,-500.0,0.00044989,10]
[399069310,1766099439746,-500.0,0.00044989,10]
[399069311,1766099439755,-500.0,0.00044989,120]
[399069312,1766099439764,-500.0,0.00044989,120]
[399069313,1766099439774,-500.0,0.00044989,120]
[399069314,1766099439784,-500.0,0.00044989,120]
[399069315,1766099439793,-500.0,0.00044989,120]
[399069316,1766099439802,-720.06,0.00044989,120]
[399069317,1766099439812,-720.06,0.00044989,120]
[399069318,1766099439821,-720.06,0.00044989,120]
[399069319,1766099439831,-720.06,0.00044989,120]
[399069320,1766099439843,-720.06,0.00044989,120]
[399069321,1766099439853,-531.78,0.00044989,120]
[399069322,1766099439862,-531.78,0.00044989,120]
[399069323,1766099439871,-531.78,0.00044989,120]
[399069324,1766099439882,-531.78,0.00044989,120]
[399069325,1766099439893,-531.78,0.00044989,120]
[399069326,1766099439903,-635.31066947,0.00044989,120]
[399069327,1766099439913,-500.0,0.00044989,120]
[399069328,1766099439923,-500.0,0.00044989,120]
[399069329,1766099439932,-500.0,0.00044989,120]
[399069330,1766099439942,-500.0,0.00044989,120]
[399069331,1766099439950,-500.0,0.00044989,120]
[399069332,1766099439960,-800.0,0.0004499,14]
[399069333,1766099439969,-341.32,0.00044996,30]
[399069334,1766099439978,-151.0,0.00045,17]
[399069335,1766099439987,-800.0,0.00045006,14]
[399069336,1766099439996,-800.0,0.00045011,14]
[399069337,1766099440006,-500.0,0.00045034,10]
[399069338,1766099440015,-500.0,0.00045034,120]
[399069339,1766099440024,-720.06,0.00045034,120]
[399069340,1766099440033,-531.78,0.00045034,120]
[399069341,1766099440042,-500.0,0.00045034,120]
[399069342,1766099440052,-3589.68438047,0.00045035,2]
[399069343,1766099440061,-166.46617221,0.00045035,120]
[399069344,1766099440070,-800.0,0.00045036,14]
[399069345,1766099440080,-800.0,0.00045037,14]
[399069346,1766099440089,-158.05092711,0.00045039,14]
[399069347,1766099440099,-641.94907289,0.00045043,14]
[399069348,1766099440110,-491.5,0.00045058,30]
[399069349,1766099440120,-409.58,0.00045058,30]
[399069350,1766099440129,-284.43,0.0004506,30]
[399069351,1766099440139,-589.8,0.00045068,30]
[399069352,1766099440149,-795.283204,0.00045068,30]
[399069353,1766099440158,-353.82423985,0.0004507,14]
[399069354,1766099440167,-800.0,0.00045078,14]
[399069355,1766099440176,-707.76,0.00045082,30]
[399069356,1766099440185,-800.0,0.00045092,14]
[399069357,1766099440194,-800.0,0.00045102,14]
[399069358,1766099440203,-800.0,0.00045121,14]
[399069359,1766099440213,-500.0,0.00045124,10]
[399069360,1766099440222,-500.0,0.00045124,120]
[399069361,1766099440231,-720.06,0.00045124,120]
[399069362,1766099440240,-531.78,0.00045124,120]
[399069364,1766099440249,-1019.18,0.00045124,30]
[399069365,1766099440259,-849.31,0.00045124,30]
[399069366,1766099440268,-500.0,0.00045124,120]
[399069367,1766099440277,-821.41,0.00045133,2]
[399069368,1766099440286,-821.41,0.00045133,2]
[399069369,1766099440295,-500.0,0.00045133,120]
[399069370,1766099440305,-500.0,0.00045133,120]
[399069371,1766099440314,-160.14783371,0.00045134,30]
[399069372,1766099440324,-160.0,0.00045134,30]
[399069373,1766099440333,-500.0,0.00045134,10]
[399069374,1766099440342,-500.0,0.00045134,10]
[399069375,1766099440351,-500.0,0.00045134,10]
[399069376,1766099440360,-500.0,0.00045134,10]
[399069377,1766099440370,-500.0,0.00045134,10]
[399069378,1766099440379,-500.0,0.00045134,10]
[399069379,1766099440388,-500.0,0.00045134,10]
[399069380,1766099440398,-500.0,0.00045134,10]
[399069381,1766099440407,-254.93660611,0.00045134,10]
[399069382,1766099440416,-551.55814999,0.00045134,120]
[399069383,1766099440425,-720.06,0.00045134,120]
[399069384,1766099440435,-720.06,0.00045134,120]
[399069385,1766099440444,-720.06,0.00045134,120]
[399069386,1766099440452,-720.06,0.00045134,120]
[399069387,1766099440461,-720.06,0.00045134,120]
[399069388,1766099440470,-720.06,0.00045134,120]
[399069389,1766099440479,-720.06,0.00045134,120]
[399069390,1766099440488,-720.06,0.00045134,120]
[399069391,1766099440497,-720.06,0.00045134,120]
[399069392,1766099440505,-720.06,0.00045134,120]
[399069393,1766099440515,-720.06,0.00045134,120]
[399069394,1766099440524,-720.06,0.00045134,120]
[399069395,1766099440533,-720.06,0.00045134,120]
[399069396,1766099440542,-720.06,0.00045134,120]
[399069397,1766099440551,-720.08274262,0.00045134,120]
[399069399,1766099440560,-531.78,0.00045134,120]
[399069400,1766099440569,-531.78,0.00045134,120]
[399069401,1766099440578,-531.78,0.00045134,120]
[399069402,1766099440587,-531.78,0.00045134,120]
[399069403,1766099440596,-531.78,0.00045134,120]
[399069404,1766099440605,-531.78,0.00045134,120]
[399069405,1766099440614,-531.78,0.00045134,120]
[399069406,1766099440623,-531.78,0.00045134,120]
[399069407,1766099440631,-531.78,0.00045134,120]
[399069408,1766099440769,-531.78,0.00045134,120]
[399069409,1766099440783,-531.78,0.00045134,120]
[399069410,1766099440793,-531.78,0.00045134,120]
[399069411,1766099440803,-531.78,0.00045134,120]
[399069412,1766099440812,-531.78,0.00045134,120]
[399069413,1766099440821,-531.90843766,0.00045134,120]
[399069414,1766099440831,-821.41,0.00045134,2]
[399069415,1766099440842,-821.41,0.00045134,2]
[399069416,1766099440851,-821.41,0.00045134,2]
[399069417,1766099440861,-821.41,0.00045134,2]
[399069418,1766099440870,-821.41,0.00045134,2]
[399069419,1766099440880,-821.41,0.00045134,2]
[399069420,1766099440889,-821.41,0.00045134,2]
[399069421,1766099440899,-821.41,0.00045134,2]
[399069422,1766099440909,-821.41,0.00045134,2]
[399069423,1766099440918,-821.41,0.00045134,2]
[399069424,1766099440928,-821.41,0.00045134,2]
[399069425,1766099440937,-821.41,0.00045134,2]
[399069426,1766099440946,-821.41,0.00045134,2]
[399069427,1766099440955,-821.41,0.00045134,2]
[399069428,1766099440963,-821.41,0.00045134,2]
[399069429,1766099440972,-821.41,0.00045134,2]
[399069430,1766099440981,-821.52448987,0.00045134,2]
[399069431,1766099440990,-500.0,0.00045134,120]
[399069432,1766099440999,-500.0,0.00045134,120]
[399069433,1766099441008,-500.0,0.00045134,120]
[399069434,1766099441018,-537.27333034,0.00045134,120]
[399069435,1766099441027,-500.0,0.00045134,120]
[399069436,1766099441036,-500.0,0.00045134,120]
[399069437,1766099441045,-500.0,0.00045134,120]
[399069438,1766099441054,-500.0,0.00045134,120]
[399069439,1766099441063,-500.0,0.00045134,120]
[399069440,1766099441072,-500.0,0.00045134,120]
[399069441,1766099441082,-500.0,0.00045134,120]
[399069442,1766099441091,-500.0,0.00045134,120]
[399069443,1766099441100,-500.0,0.00045134,120]
[399069444,1766099441109,-386.79025562,0.00045134,120]
[399069445,1766099441119,-2096.3836986,0.00045135,2]
[399069446,1766099441128,-144116.7590158,0.00045135,2]
[399069447,1766099441137,-151.0,0.00045135,120]
[399069448,1766099441147,-151.0,0.00045135,120]
[399069449,1766099441156,-151.0,0.00045135,120]
[399069450,1766099441165,-151.0,0.00045135,120]
[399069451,1766099441174,-151.0,0.00045135,120]
[399069452,1766099441183,-151.0,0.00045135,120]
[399069453,1766099441192,-151.0,0.00045135,120]
[399069454,1766099441201,-456.782201,0.00045135,120]
[399069455,1766099441211,-456.782201,0.00045135,120]
[399069456,1766099441220,-456.782201,0.00045135,120]
[399069457,1766099441229,-456.782201,0.00045135,120]
[399069458,1766099441239,-672.663848,0.00045135,120]
[399069459,1766099441248,-672.663848,0.00045135,120]
[399069460,1766099441257,-672.663848,0.00045135,120]
[399069461,1766099441266,-672.663848,0.00045135,120]
[399069462,1766099441275,-151.0,0.00045135,120]
[399069463,1766099441284,-151.0,0.00045135,120]
[399069465,1766099441293,-228.837441,0.00045135,120]
[399069466,1766099441302,-151.0,0.00045135,120]
[399069467,1766099441311,-151.0,0.00045135,120]
[399069469,1766099441320,-151.0,0.00045135,120]
[399069470,1766099441329,-151.0,0.00045135,120]
[399069471,1766099441337,-151.0,0.00045135,120]
[399069472,1766099441346,-180.505845,0.00045135,120]
[399069473,1766099441355,-2601.63,0.000452,14]
[399069474,1766099441364,-151.0,0.000452,22]
[399069475,1766099441372,-619.57,0.00045261,14]
[399069476,1766099441381,-619.57,0.00045261,14]
[399069477,1766099441390,-619.57,0.00045261,14]
[399069478,1766099441400,-619.57,0.00045261,14]
[399069479,1766099441409,-619.57,0.00045261,14]
[399069480,1766099441418,-619.57,0.00045261,14]
[399069481,1766099441426,-619.57,0.00045261,14]
[399069482,1766099441435,-619.57,0.00045261,14]
[399069483,1766099441444,-619.57,0.00045261,14]
[399069484,1766099441453,-619.57,0.00045261,14]
[399069485,1766099441462,-619.57,0.00045261,14]
[399069486,1766099441471,-619.57,0.00045261,14]
[399069487,1766099441479,-619.57,0.00045261,14]
[399069488,1766099441489,-619.57,0.00045261,14]
[399069489,1766099441498,-619.57,0.00045261,14]
[399069490,1766099441507,-619.57,0.00045261,14]
[399069491,1766099441516,-619.57,0.00045261,14]
[399069492,1766099441525,-619.57,0.00045261,14]
[399069493,1766099441534,-619.57,0.00045261,14]
[399069494,1766099441543,-619.57,0.00045261,14]
[399069495,1766099441552,-619.65472394,0.00045261,14]
[399069496,1766099441562,-466.87517832,0.00045262,2]
[399069497,1766099441571,-151.0,0.000453,23]
[399069498,1766099441580,-767.7842514,0.00045347,2]
[399069499,1766099441589,-151.0,0.000454,30]
[399069500,1766099441598,-500.0,0.0004544,17]
[399069501,1766099441607,-151.0,0.000456,28]
[399069502,1766099441616,-151.0,0.000456,22]
[399069503,1766099441625,-150.0,0.00045696,2]
[399069504,1766099441634,-1787.72615378,0.00045764,2]
[399069505,1766099441644,-156.0,0.00045772,30]
[399069506,1766099441653,-334.0,0.00045772,30]
[399069507,1766099441663,-334.0,0.00045772,30]
[399069508,1766099441672,-334.0,0.00045772,30]
[399069509,1766099441681,-334.0,0.00045772,30]
[399069510,1766099441690,-334.0,0.00045772,30]
[399069511,1766099441700,-334.0,0.00045772,30]
[399069512,1766099441709,-334.0,0.00045772,30]
[399069513,1766099441718,-334.0,0.00045772,30]
[399069514,1766099441727,-334.0,0.00045772,30]
[399069515,1766099441737,-334.0,0.00045772,30]
[399069516,1766099441746,-334.0,0.00045772,30]
[399069517,1766099441755,-334.0,0.00045772,30]
[399069518,1766099441764,-334.0,0.00045772,30]
[399069519,1766099441773,-334.0,0.00045772,30]
[399069520,1766099441782,-334.0,0.00045772,30]
[399069521,1766099441791,-334.0,0.00045772,30]
[399069522,1766099441800,-334.0,0.00045772,30]
[399069523,1766099441809,-334.0,0.00045772,30]
[399069524,1766099441818,-334.0,0.00045772,30]
[399069525,1766099441827,-334.0,0.00045772,30]
[399069526,1766099441838,-334.0,0.00045772,30]
[399069527,1766099441848,-334.0,0.00045772,30]
[399069528,1766099441859,-334.0,0.00045772,30]
[399069529,1766099441868,-334.0,0.00045772,30]
[399069530,1766099441878,-334.0,0.00045772,30]
[399069531,1766099441888,-334.0,0.00045772,30]
[399069532,1766099441897,-181.25803272,0.00045772,30]
[399069533,1766099441907,-166.0,0.00045772,30]
[399069534,1766099441917,-151.0,0.00045772,30]
[399069535,1766099441926,-344.0,0.00045772,30]
[399069536,1766099441936,-151.0,0.00045772,30]
[399069537,1766099441945,-152.0,0.00045772,30]
[399069538,1766099441960,-151.0,0.00045772,30]
[399069539,1766099441970,-344.0,0.00045772,30]
[399069540,1766099441983,-269.85541096,0.00045772,30]
[399069541,1766099441993,-334.0,0.00045772,30]
[399069542,1766099442003,-166.89680406,0.00045772,30]
[399069543,1766099442014,-156.0,0.00045772,30]
[399069544,1766099442025,-151.0,0.00045772,30]
[399069545,1766099442037,-344.0,0.00045772,30]
[399069546,1766099442048,-152.0,0.00045772,30]
[399069547,1766099442059,-334.0,0.00045772,30]
[399069548,1766099442070,-156.0,0.00045772,30]
[399069549,1766099442082,-271.51257598,0.00045772,30]
[399069550,1766099442093,-344.0,0.00045772,30]
[399069551,1766099442103,-152.0,0.00045772,30]
[399069552,1766099442112,-334.0,0.00045772,30]
[399069553,1766099442121,-156.0,0.00045772,30]
[399069554,1766099442130,-152.0,0.00045772,30]
[399069555,1766099442139,-151.0,0.00045772,30]
[399069556,1766099442148,-334.0,0.00045772,30]
[399069557,1766099442157,-156.0,0.00045772,30]
[399069558,1766099442166,-151.0,0.00045772,30]
[399069559,1766099442175,-152.0,0.00045772,30]
[399069560,1766099442184,-334.0,0.00045772,30]
[399069561,1766099442193,-156.0,0.00045772,30]
[399069562,1766099442202,-151.0,0.00045772,30]
[399069563,1766099442212,-334.0,0.00045772,30]
[399069564,1766099442221,-156.0,0.00045772,30]
[399069565,1766099442230,-151.0,0.00045772,30]
[399069566,1766099442238,-334.0,0.00045772,30]
[399069567,1766099442247,-152.0,0.00045772,30]
[399069568,1766099442256,-334.0,0.00045772,30]
[399069569,1766099442265,-152.0,0.00045772,30]
[399069570,1766099442274,-151.0,0.00045772,30]
[399069571,1766099442283,-156.0,0.00045772,30]
[399069572,1766099442292,-334.0,0.00045772,30]
[399069573,1766099442302,-152.0,0.00045772,30]
[399069574,1766099442311,-151.0,0.00045772,30]
[399069575,1766099442320,-156.0,0.00045772,30]
[399069576,1766099442329,-334.0,0.00045772,30]
[399069577,1766099442338,-152.0,0.00045772,30]
[399069578,1766099442348,-151.0,0.00045772,30]
[399069579,1766099442356,-156.0,0.00045772,30]
[399069580,1766099442365,-334.0,0.00045772,30]
[399069581,1766099442375,-152.0,0.00045772,30]
[399069582,1766099442384,-151.0,0.00045772,30]
[399069583,1766099442393,-156.0,0.00045772,30]
[399069584,1766099442402,-334.0,0.00045772,30]
[399069585,1766099442411,-152.0,0.00045772,30]
[399069586,1766099442421,-151.0,0.00045772,30]
[399069587,1766099442430,-156.0,0.00045772,30]
[399069588,1766099442439,-334.0,0.00045772,30]
[399069589,1766099442448,-152.0,0.00045772,30]
[399069590,1766099442457,-151.0,0.00045772,30]
[399069591,1766099442467,-156.0,0.00045772,30]
[399069592,1766099442476,-334.0,0.00045772,30]
[399069593,1766099442485,-152.0,0.00045772,30]
[399069594,1766099442495,-151.0,0.00045772,30]
[399069595,1766099442504,-167.92336698,0.00045772,30]
[399069596,1766099442513,-334.0,0.00045772,30]
[399069597,1766099442523,-152.0,0.00045772,30]
[399069598,1766099442532,-151.0,0.00045772,30]
[399069599,1766099442541,-334.0,0.00045772,30]
[399069600,1766099442551,-152.0,0.00045772,30]
[399069601,1766099442560,-151.0,0.00045772,30]
[399069602,1766099442569,-334.0,0.00045772,30]
[399069603,1766099442578,-152.0,0.00045772,30]
[399069604,1766099442587,-151.0,0.00045772,30]
[399069605,1766099442597,-334.0,0.00045772,30]
[399069606,1766099442606,-152.0,0.00045772,30]
[399069607,1766099442616,-151.0,0.00045772,30]
[399069608,1766099442625,-334.0,0.00045772,30]
[399069609,1766099442634,-152.0,0.00045772,30]
[399069610,1766099442643,-151.0,0.00045772,30]
[399069611,1766099442653,-334.0,0.00045772,30]
[399069612,1766099442662,-152.0,0.00045772,30]
[399069613,1766099442685,-151.0,0.00045772,30]
[399069614,1766099442696,-152.0,0.00045772,30]
[399069615,1766099442705,-334.0,0.00045772,30]
[399069616,1766099442714,-151.0,0.00045772,30]
[399069617,1766099442723,-334.0,0.00045772,30]
[399069618,1766099442733,-152.0,0.00045772,30]
[399069619,1766099442743,-282.0,0.00045772,30]
[399069620,1766099442752,-334.0,0.00045772,30]
[399069621,1766099442762,-152.0,0.00045772,30]
[399069622,1766099442771,-334.0,0.00045772,30]
[399069623,1766099442780,-152.0,0.00045772,30]
[399069624,1766099442790,-334.0,0.00045772,30]
[399069625,1766099442804,-152.0,0.00045772,30]
[399069626,1766099442817,-334.0,0.00045772,30]
[399069627,1766099442827,-152.0,0.00045772,30]
[399069628,1766099442838,-334.0,0.00045772,30]
[399069629,1766099442852,-166.0,0.00045772,30]
[399069630,1766099442862,-152.0,0.00045772,30]
[399069631,1766099442872,-334.0,0.00045772,30]
[399069632,1766099442883,-166.0,0.00045772,30]
[399069633,1766099442893,-204.51062788,0.00045772,30]
[399069634,1766099442901,-334.0,0.00045772,30]
[399069635,1766099442912,-167.20529237,0.00045772,30]
[399069636,1766099442921,-334.0,0.00045772,30]
[399069637,1766099442931,-334.0,0.00045772,30]
[399069638,1766099442941,-334.0,0.00045772,30]
[399069639,1766099442953,-334.0,0.00045772,30]
[399069640,1766099442963,-334.0,0.00045772,30]
[399069641,1766099442975,-278.61366763,0.00045772,30]
[399069642,1766099442985,-174.0,0.00045772,30]
[399069643,1766099442994,-174.0,0.00045772,30]
[399069644,1766099443003,-176.8019086,0.00045772,30]
[399069645,1766099443013,-151.0,0.000458,27]
[399069646,1766099443022,-796.19226871,0.00045895,2]
[399069647,1766099443031,-166.46617221,0.00045988,120]
[399069648,1766099443041,-151.0,0.00045988,120]
[399069649,1766099443050,-338.238808,0.00045988,120]
[399069650,1766099443059,-338.238808,0.00045988,120]
[399069651,1766099443069,-338.238808,0.00045988,120]
[399069652,1766099443078,-338.238808,0.00045988,120]
[399069653,1766099443088,-151.931589,0.00045988,30]
[399069654,1766099443098,-100000.0,0.0004599,2]
[399069655,1766099443107,-456.782201,0.0004599,120]
[399069656,1766099443117,-456.782201,0.0004599,120]
[399069657,1766099443126,-456.782201,0.0004599,120]
[399069658,1766099443136,-456.782201,0.0004599,120]
[399069660,1766099443175,-672.663848,0.0004599,120]
[399069663,1766099443184,-672.663848,0.0004599,120]
[399069664,1766099443196,-672.663848,0.0004599,120]
[399069666,1766099443206,-672.663848,0.0004599,120]
[399069667,1766099443216,-172.783429,0.0004599,120]
[399069668,1766099443225,-151.0,0.0004599,120]
[399069669,1766099443235,-338.238808,0.0004599,120]
[399069670,1766099443244,-338.238808,0.0004599,120]
[399069671,1766099443254,-338.238808,0.0004599,120]
[399069672,1766099443263,-338.238808,0.0004599,120]
[399069673,1766099443273,-466.236026,0.0004599,28]
[399069674,1766099443282,-466.236026,0.0004599,28]
[399069675,1766099443291,-466.236026,0.0004599,28]
[399069676,1766099443300,-466.236026,0.0004599,28]
[399069677,1766099443309,-151.0,0.0004599,120]
[399069678,1766099443318,-151.000384,0.0004599,120]
[399069680,1766099443327,-3175.330701,0.0004599,120]
[399069681,1766099443336,-3175.330701,0.0004599,120]
[399069682,1766099443344,-162.842995,0.0004599,120]
[399069683,1766099443353,-3175.330701,0.0004599,120]
[399069684,1766099443362,-3175.330701,0.0004599,120]
[399069685,1766099443384,-151.0,0.0004599,120]
[399069686,1766099443394,-151.0,0.0004599,120]
[399069687,1766099443404,-151.0,0.0004599,120]